{"text_format":"2","workbook":"xlsx","n_sheets":1,"sheets":["Т—Ж"],"not_rendered":{"charts":0,"images":0,"macros":0,"external_links":0,"defined_names":0,"comments":0,"pivot_tables":0},"unopened":[],"bounds":{"document_bytes":16777216,"sheet_cells":100000,"run_cost":"one","rows_first":2000,"rows_last":500,"rows_between":2000,"halvings":0,"cell_chars":16384,"cell_head_chars":4096},"cells_cut":0,"cells_raw":0,"read":"whole","date_system":"1900"}

{"sheet":"Т—Ж","index":0,"n_rows":49,"n_cols":11,"rows_kept":49,"cut":false,"hidden":false,"merged":[[0,0,0,1],[6,0,6,5],[7,0,7,1],[14,2,14,5],[16,0,16,5],[17,0,17,1],[23,0,23,5],[28,9,35,9],[28,10,35,10],[42,8,46,8],[30,0,31,0],[30,1,31,1],[28,0,29,0],[32,0,33,0],[30,6,31,6],[32,6,33,6],[34,0,35,0],[34,1,35,1],[34,6,35,6],[38,0,38,8],[39,0,39,8],[40,0,40,2],[24,0,24,10],[25,0,25,8],[26,0,26,1],[28,1,29,1],[28,6,29,6],[28,8,35,8],[32,1,33,1]]}
["Партнер может выбрать один или несколько форматов, при покупке пакета от 3х материалов действуют специальные условия. В стоимость входит подготовка материала, размещение и редакционное анонсирование. Маркировка материала обязательна. "]
["Формат","Описание","Прогноз охватов","Цена, руб. до НДС","Прогнозный CPU, руб.","Сроки подготовки (со дня заключения договора), раб. дней"]
["Экспертная статья","Статья с экспертом по теме. Рекламный блок и CTA в начале и в конце статьи",10000.0,{"$f":"900000*1.2","v":1080000},{"$f":"D3/C3","v":108},"от 20"]
["Список","Нативное описание преимуществ продукта в виде структурированных пунктов. CTA в конце материала",10000.0,{"$f":"800000*1.2","v":960000},96,"от 20"]
["Шорт","Короткие, информативные карточки. CTA на одной из карточек",10000.0,960000,96,"от 20"]
[]
["Интерактивные спецпроекты"]
["Партнер может выбрать один или несколько форматов, при покупке пакета от 3х материалов действуют специальные условия. В стоимость входит подготовка материала, размещение и редакционное анонсирование. Маркировка материала обязательна. "]
["Формат","Описание","Прогноз охватов","Цена, руб. до НДС","Прогнозный CPU, руб.","Сроки подготовки (со дня заключения договора), раб. дней"]
["Тест","Опрос с вариантами ответов. Рекламный блок и CTA в тесте или результатах",10000.0,{"$f":"1000000*1.2","v":1200000},{"$f":"D10/C10","v":120},"от 30"]
["Калькулятор","Интерактивный формат для расчета выгоды продукта в цифрах с рекламным блоком и CTA",10000.0,{"$f":"1200000*1.2","v":1440000},144,"от 40"]
["Фичер","Интерактивный формат под цели партнера, часто с игровой механикой",10000.0,1440000,144,"от 40"]
["Спецпроект с T-Data","Формат, разработанный совместно с T-Data. На снове обезличенной банковской информации готовится исследование с инфографикой",10000.0,"от 1 100 000",{"$f":"1100000/C13","v":110},"от 40"]
["Образовательный курс","Формат помогает погрузить пользователя в тему и дать новые знания или навыки. Состоит из 3-10 уроков с заданиями, тестами и чек-листами",10000.0,"от 1 800 000",{"$f":"1800000/10000","v":180},"от 80"]
["Эксклюзивный спецпроект","Формат, разработанный специально под цели партнера или возможностью совместить в себе несколько форматов","Индивидуальное предложение по запросу от 2 200 000 руб."]
[]
["Соцсети"]
["Доступно при заказе спецпроекта. Партнер может выбрать один из каналов, либо все доступные соцсети. Пост с упоминанием партнера, маркировкой и переходом на сайт партнера. "]
["Соцсеть","Описание","Прогноз охватов","Цена, руб. до НДС","Прогнозный CPV, руб.","Сроки подготовки (со дня заключения договора), раб. дней"]
["Telegram","Пост в основном канале https://t.me/t_jrnl и тематическом канале со ссылкой на спецпроект и упоминанием партнера в тексте поста",15000.0,{"$f":"100000*1.2","v":120000},{"$f":"D20/C20","v":8},"от 5"]
["ВК","Пост в сообществе https://vk.com/t_jrnl со ссылкой на спецпроект и упоминанием партнера в тексте поста",5000.0,{"$f":"50000*1.2","v":60000},12,"от 5"]
["Одноклассники","Пост в группе https://ok.ru/tjrnl со ссылкой на спецпроект и упоминанием партнера в тексте поста",5000.0,60000,12,"от 5"]
[]
[]
[]
["Баннерная реклама"]
["В блоке перечислен минимальный охват по каждому инструменту, при желании объем показов может быть увеличен под цели заказчика."]
["Формат","Описание","Размер","Устройство","Прогноз охватов","Прогноз показов","Прогнозный CTR","Прогноз кликов","Единица закупки","CPM, руб.кликаут, до НДС","Сроки подготовки (со дня заключения договора), раб. дней"]
["Micro","Баннер размещается: \n  - в верхней части страницы, над хедером","760px x 105px","Desktop","100 000",120000.0,0.0025,{"$f":"F29*G29","v":300},"1000 показов",400.0,"от 14"]
[null,null,"100% x 120px","Mobile","400 000",480000.0,null,{"$f":"F30*G29","v":1200}]
["Mini баннер","Баннер размещается: \n  - после автора в начале материала","760px х 180px","Desktop","100 000",120000.0,0.0015,{"$f":"F31*G31","v":180}]
[null,null,"335px х 185px","Mobile","400 000",480000.0,null,{"$f":"F32*G31","v":720}]
["Medium баннер","Баннер размещается:\n  - внутри текста материала\n  - в конце материала\n  - в конце страницы последним блоком","760px х 220px","Desktop","100 000",120000.0,0.002,{"$f":"F33*G33","v":240}]
[null,null,"335px x 390px","Mobile","400 000",480000.0,null,{"$f":"F34*G33","v":960}]
["Large баннер","Баннер размещается:\n  - внутри текста материала\n  - после блока комментариев","760px x 235px","Desktop","100 000",120000.0,0.002,{"$f":"F35*G35","v":240}]
[null,null,"375px x 520px","Mobile","400 000",480000.0,null,{"$f":"F36*G35","v":960}]
[]
[]
[]
["Реклама в подкастах"]
["Цены указаны за рекламную вставку длиной от 30 секунд до 1,5 минут. \nПо запросу можно увеличить время интеграции, сделать совместный выпуск или сезон."]
["Подкаст","Описание","ЦА: пол*","ЦА: возраст*","Целевая аудитория: интересы*","Прогноз прослушиваний выпуска спустя месяц","Цена, руб. до НДС","Стоимость прослушивания, руб. без НДС","Сроки подготовки (со дня заключения договора), раб. дней"]
["План Б","Двое ведущих ищут путь к богатству","50% мужчин и 50% женщин","18-24 года — 18%\n 25-34 года — 43%\n 35-44 года — 22%","лайфстайл, личные финансы, работа и карьера, ИТ, эмиграция, психология, бизнес и инвестиции",25000.0,{"$f":"200000*1.2","v":240000},{"$f":"G43/F43","v":9.6},"от 14"]
["Прием","Разговорное шоу про медицину и здоровье","28% мужчин и 72% женщин","18-24 года — 20%\n 25-34 года — 52%\n 35-44 года — 13%","медицина, ЗОЖ, красота, велнесс, фитнес, наука, семья и дети, ментальное здоровье",10000.0,{"$f":"80000*1.2","v":96000},9.6]
["Схема","Тру-крайм про современное мошенничество","52% мужчин и 48% женщин","18-24 года — 19%\n 25-34 года — 47%\n 35-44 года — 18%","тру-крайм, история, документалистика, финансовая безопасность, ИТ",12000.0,{"$f":"100000*1.2","v":120000},10]
["Ну как там с деньгами?","Разбор бюджета и финансовых целей гостей","47% мужчин и 53% женщин","18-24 года — 28%\n 25-34 года — 50%\n 35-44 года — 11%","финансовая грамотность, юмор, работа и карьера, инвестиции, психология, продуктивность, экономия",7000.0,{"$f":"60000*1.2","v":72000},10.28571429]
["В курсе рубля","Эксперты про главное в экономике","58% мужчин и 42% женщин","18-24 года — 17%\n 25-34 года — 41%\n 35-44 года — 22%","экономика, новости, инвестиции, бизнес и работа, политика",12000.0,{"$f":"150000*1.2","v":180000},15]
[]
[null,null,"*по данным Яндекс Музыки \n за период с 21.02.2024 по 21.02.2025"]